fUSD/lending_fUSD_20250320
["ID","MTS","AMOUNT","RATE_DAILY","PERIOD"]
[356431964,1742440140388,-500.0,0.0002756,2]
[356431965,1742440140414,-569.15272597,0.0002756,2]
[356431966,1742440140601,-500.0,0.0002756,2]
[356431967,1742440140625,-502.96336355,0.0002756,2]
[356431968,1742440140649,-500.0,0.0002756,2]
[356431969,1742440140673,-500.0,0.0002756,2]
[356431970,1742440140697,-520.29,0.0002756,2]
[356431971,1742440140721,-500.0,0.0002756,2]
[356431972,1742440140745,-500.0,0.0002756,2]
[356431973,1742440140769,-500.0,0.0002756,2]
[356431974,1742440140792,-500.0,0.0002756,2]
[356431975,1742440140815,-500.0,0.0002756,2]
[356431976,1742440140840,-500.0,0.0002756,2]
[356431977,1742440140864,-500.0,0.0002756,2]
[356431978,1742440140887,-500.0,0.0002756,2]
[356431979,1742440140911,-500.0,0.0002756,2]
[356431980,1742440140935,-500.0,0.0002756,2]
[356431981,1742440140959,-500.0,0.0002756,2]
[356431982,1742440140984,-500.0,0.0002756,2]
[356431983,1742440141008,-500.0,0.0002756,2]
[356431984,1742440141031,-420.16688088,0.0002756,2]
[356431985,1742440141056,-500.0,0.0002756,2]
[356431986,1742440141079,-279.80460823,0.0002756,2]
[356431987,1742440141103,-500.0,0.0002756,2]
[356431988,1742440141130,-500.0,0.0002756,2]
[356431989,1742440141155,-500.0,0.0002756,2]
[356431990,1742440141180,-500.0,0.0002756,2]
[356431991,1742440141205,-500.0,0.0002756,2]
[356431992,1742440141228,-500.0,0.0002756,2]
[356431993,1742440141252,-500.0,0.0002756,2]
[356431994,1742440141275,-500.0,0.0002756,2]
[356431995,1742440141298,-500.0,0.0002756,2]
[356431996,1742440141322,-500.0,0.0002756,2]
[356431997,1742440141346,-500.0,0.0002756,2]
[356431998,1742440141370,-500.0,0.0002756,2]
[356431999,1742440141394,-500.0,0.0002756,2]
[356432000,1742440141417,-500.0,0.0002756,2]
[356432001,1742440141441,-500.0,0.0002756,2]
[356432002,1742440141466,-500.0,0.0002756,2]
[356432003,1742440141493,-500.0,0.0002756,2]
[356432004,1742440141516,-505.99683251,0.0002756,2]
[356432005,1742440141539,-500.0,0.0002756,2]
[356432006,1742440141561,-500.0,0.0002756,2]
[356432007,1742440141585,-1225.28445,0.0002756,40]
[356432008,1742440141609,-500.0,0.0002756,2]
[356432009,1742440141633,-500.0,0.0002756,2]
[356432010,1742440141656,-503.38734974,0.0002756,2]
[356432011,1742440141680,-500.0,0.0002756,2]
[356432012,1742440141703,-505.9117168,0.0002756,2]
[356432013,1742440141726,-505.40341276,0.0002756,2]
[356432014,1742440141750,-500.0,0.0002756,2]
[356432015,1742440141775,-500.0,0.0002756,2]
[356432016,1742440141799,-500.0,0.0002756,2]
[356432017,1742440141823,-500.0,0.0002756,2]
[356432018,1742440141848,-227.62021015,0.0002756,2]
[356432019,1742440141871,-500.0,0.0002756,2]
[356432020,1742440141896,-500.0,0.0002756,2]
[356432021,1742440141921,-500.0,0.0002756,2]
[356432022,1742440141947,-500.0,0.0002756,2]
[356432023,1742440141971,-1508.56653403,0.0002756,2]
[356432024,1742440141996,-500.0,0.0002756,2]
[356432025,1742440142021,-500.0,0.0002756,2]
[356432026,1742440142046,-500.0,0.0002756,2]
[356432027,1742440142071,-500.0,0.0002756,2]
[356432028,1742440142096,-500.0,0.0002756,2]
[356432029,1742440142122,-500.0,0.0002756,2]
[356432030,1742440142147,-522.96,0.0002756,2]
[356432031,1742440142175,-500.0,0.0002756,2]
[356432032,1742440142201,-502.4182182,0.0002756,2]
[356432033,1742440142226,-520.33,0.0002756,2]
[356432034,1742440142251,-500.0,0.0002756,2]
[356432035,1742440142275,-505.59632605,0.0002756,2]
[356432036,1742440142299,-500.0,0.0002756,2]
[356432037,1742440142324,-500.0,0.0002756,2]
[356432038,1742440142348,-630.2746973,0.0002756,2]
[356432039,1742440142373,-500.0,0.0002756,2]
[356432040,1742440142396,-500.0,0.0002756,2]
[356432041,1742440142422,-500.0,0.0002756,2]
[356432042,1742440142446,-500.0,0.0002756,2]
[356432043,1742440142471,-500.0,0.0002756,2]
[356432044,1742440142495,-500.0,0.0002756,2]
[356432045,1742440142519,-500.0,0.0002756,2]
[356432046,1742440142542,-500.0,0.0002756,2]
[356432047,1742440142566,-500.0,0.0002756,2]
[356432048,1742440142591,-401.92793778,0.0002756,2]
[356432049,1742440142615,-500.0,0.0002756,2]
[356432050,1742440142639,-500.0,0.0002756,2]
[356432051,1742440142664,-500.0,0.0002756,2]
[356432052,1742440142689,-490.99055355,0.0002756,2]
[356432053,1742440142712,-500.0,0.00027561,2]
[356432054,1742440142736,-500.0,0.00027561,2]
[356432055,1742440142759,-500.18909535,0.00027561,2]
[356432056,1742440142783,-500.0,0.00027561,2]
[356432057,1742440142807,-500.0,0.00027561,2]
[356432058,1742440142831,-500.0,0.00027561,2]
[356432059,1742440142855,-500.0,0.00027561,2]
[356432060,1742440142882,-500.0,0.00027561,2]
[356432061,1742440142908,-500.0,0.00027561,2]
[356432062,1742440143090,-500.0,0.00027561,2]
[356432063,1742440143118,-500.0,0.00027561,2]
[356432064,1742440143147,-500.0,0.00027561,2]
[356432065,1742440143174,-500.0,0.00027561,2]
[356432066,1742440143202,-500.0,0.00027561,2]
[356432067,1742440143228,-500.0,0.00027561,2]
[356432068,1742440143253,-660.81,0.00027561,2]
[356432069,1742440143282,-334.18476896,0.00027561,2]
[356432070,1742440143310,-500.0,0.00027561,2]
[356432071,1742440143337,-500.0,0.00027561,2]
[356432072,1742440143366,-500.0,0.00027561,2]
[356432073,1742440143392,-500.0,0.00027561,2]
[356432074,1742440143419,-500.0,0.00027561,2]
[356432075,1742440143447,-500.0,0.00027561,2]
[356432076,1742440143477,-500.0,0.00027561,2]
[356432077,1742440143505,-500.0,0.00027561,2]
[356432078,1742440143531,-500.0,0.00027561,2]
[356432079,1742440143556,-500.0,0.00027561,2]
[356432080,1742440143583,-552.85,0.00027561,2]
[356432081,1742440143609,-595.85,0.00027561,2]
[356432082,1742440143635,-648.29367617,0.00027561,2]
[356432083,1742440143660,-500.0,0.00027561,2]
[356432084,1742440143688,-500.0,0.00027561,2]
[356432085,1742440143715,-500.0,0.00027561,2]
[356432086,1742440143741,-500.0,0.00027561,2]
[356432087,1742440143767,-500.0,0.00027561,2]
[356432088,1742440143792,-500.0,0.00027561,2]
[356432089,1742440143817,-500.0,0.00027561,2]
[356432090,1742440143842,-300.0,0.00027561,2]
[356432091,1742440143868,-500.0,0.00027561,2]
[356432092,1742440143894,-500.0,0.00027561,2]
[356432093,1742440143921,-500.0,0.00027561,2]
[356432094,1742440143947,-631.07983265,0.00027561,2]
[356432095,1742440143973,-500.0,0.00027561,2]
[356432096,1742440144000,-500.0,0.00027561,2]
[356432097,1742440144028,-500.0,0.00027561,30]
[356432098,1742440144053,-500.0,0.00027561,2]
[356432099,1742440144078,-500.0,0.00027561,2]
[356432100,1742440144103,-600.95,0.00027561,2]
[356432101,1742440144129,-500.0,0.00027561,2]
[356432102,1742440144155,-500.0,0.00027561,2]
[356432103,1742440144182,-500.0,0.00027561,2]
[356432104,1742440144210,-500.0,0.00027561,2]
[356432105,1742440144236,-500.0,0.00027561,2]
[356432106,1742440144261,-500.0,0.00027561,2]
[356432107,1742440144287,-500.0,0.00027561,2]
[356432108,1742440144312,-500.0,0.00027561,2]
[356432109,1742440144337,-500.0,0.00027561,2]
[356432110,1742440144362,-500.0,0.00027561,2]
[356432111,1742440144387,-184.81107556,0.00027561,2]
[356432112,1742440144414,-500.0,0.00027561,2]
[356432113,1742440144440,-500.0,0.00027561,2]
[356432114,1742440144464,-210.10736252,0.00027573,5]
[356432115,1742440144489,-500.48841586,0.00027573,5]
[356432116,1742440144514,-506.15729845,0.00027573,5]
[356432117,1742440144539,-10616.6291929,0.00027575,3]
[356432118,1742440144566,-5308.31459647,0.00027585,3]
[356432119,1742440144592,-5308.31459647,0.00027585,3]
[356432120,1742440144618,-18573.8818753,0.00027586,3]
[356432121,1742440144643,-5308.31459647,0.00027586,3]
[356432122,1742440144668,-237.46,0.0002759,2]
[356432123,1742440144697,-5308.31459647,0.00027594,3]
[356432124,1742440144722,-12382.5879169,0.00027595,3]
[356432125,1742440144746,-10616.6291929,0.00027595,3]
[356432126,1742440144771,-12382.5879169,0.00027595,3]
[356432127,1742440144796,-10616.6291929,0.00027595,3]
[356432128,1742440144820,-12382.5879169,0.00027596,3]
[356432129,1742440144845,-10616.6291929,0.00027596,3]
[356432130,1742440144870,-6191.29395844,0.00027604,3]
[356432131,1742440144895,-5308.31459647,0.00027604,3]
[356432132,1742440144920,-500.0,0.00027604,2]
[356432133,1742440144948,-500.0,0.00027604,2]
[356432134,1742440144973,-500.0,0.00027604,2]
[356432135,1742440144997,-500.0,0.00027604,2]
[356432136,1742440145023,-500.0,0.00027605,2]
[356432137,1742440145047,-500.0,0.00027605,2]
[356432138,1742440145073,-500.0,0.00027605,2]
[356432139,1742440145098,-500.0,0.00027605,2]
[356432140,1742440145125,-500.0,0.00027605,2]
[356432141,1742440145149,-500.0,0.00027605,2]
[356432142,1742440145174,-530.33,0.00027605,2]
[356432143,1742440145202,-500.0,0.00027605,2]
[356432144,1742440145228,-500.0,0.00027605,2]
[356432145,1742440145253,-500.0,0.00027605,2]
[356432146,1742440145278,-500.0,0.00027605,2]
[356432147,1742440145303,-500.0,0.00027605,2]
[356432148,1742440145328,-500.0,0.00027605,2]
[356432149,1742440145353,-503.83,0.00027605,2]
[356432150,1742440145379,-500.0,0.00027605,2]
[356432151,1742440145403,-500.0,0.00027605,2]
[356432152,1742440145432,-500.0,0.00027605,2]
[356432153,1742440145457,-500.0,0.00027605,2]
[356432154,1742440145480,-500.0,0.00027605,2]
[356432155,1742440145506,-500.0,0.00027605,2]
[356432156,1742440145676,-500.0,0.00027605,2]
[356432157,1742440145702,-500.0,0.00027605,2]
[356432158,1742440145726,-500.0,0.00027605,2]
[356432159,1742440145750,-500.0,0.00027605,2]
[356432160,1742440145774,-500.0,0.00027605,2]
[356432161,1742440145798,-500.0,0.00027605,2]
[356432162,1742440145822,-500.0,0.00027605,2]
[356432163,1742440145846,-500.0,0.00027605,2]
[356432164,1742440145869,-500.0,0.00027605,2]
[356432165,1742440145893,-500.0,0.00027605,2]
[356432166,1742440145918,-500.0,0.00027605,2]
[356432167,1742440145942,-509.34503642,0.00027605,2]
[356432168,1742440145967,-500.0,0.00027605,2]
[356432169,1742440145991,-500.0,0.00027605,2]
[356432170,1742440146016,-500.0,0.00027605,2]
[356432171,1742440146039,-551.61,0.00027605,2]
[356432172,1742440146063,-500.0,0.00027605,2]
[356432173,1742440146087,-500.0,0.00027605,2]
[356432174,1742440146112,-504.51868143,0.00027605,2]
[356432175,1742440146135,-999.97,0.00027605,2]
[356432176,1742440146160,-500.0,0.00027605,2]
[356432177,1742440146186,-500.0,0.00027605,2]
[356432178,1742440146210,-504.91362055,0.00027605,2]
[356432179,1742440146236,-500.0,0.00027605,2]
[356432180,1742440146260,-353.52895706,0.00027605,2]
[356432181,1742440146286,-500.0,0.00027605,2]
[356432182,1742440146311,-543.93,0.00027605,2]
[356432183,1742440146336,-502.89402548,0.00027605,2]
[356432184,1742440146361,-500.0,0.00027605,2]
[356432185,1742440146385,-503.16692345,0.00027605,2]
[356432186,1742440146410,-500.0,0.00027605,2]
[356432187,1742440146436,-503.58316881,0.00027605,2]
[356432188,1742440146462,-505.39689335,0.00027605,2]
[356432189,1742440146488,-24765.1758338,0.00027605,3]
[356432190,1742440146512,-26541.5729824,0.00027605,3]
[356432191,1742440146537,-18573.8818753,0.00027606,3]
[356432192,1742440146561,-15924.9437894,0.00027606,3]
[356432193,1742440146587,-569.86,0.00027614,2]
[356432194,1742440146612,-500.0,0.00027614,2]
[356432195,1742440146637,-500.0,0.00027614,2]
[356432196,1742440146662,-500.0,0.00027614,2]
[356432197,1742440146686,-500.0,0.00027614,2]
[356432198,1742440146711,-500.0,0.00027614,2]
[356432199,1742440146737,-500.0,0.00027614,2]
[356432200,1742440146762,-500.0,0.00027614,2]
[356432201,1742440146787,-500.0,0.00027614,2]
[356432202,1742440146811,-500.0,0.00027614,2]
[356432203,1742440146836,-500.0,0.00027614,2]
[356432204,1742440146860,-500.0,0.00027614,2]
[356432205,1742440146885,-500.0,0.00027614,2]
[356432206,1742440146912,-500.0,0.00027614,2]
[356432207,1742440146938,-500.0,0.00027614,2]
[356432208,1742440146962,-500.0,0.00027614,2]
[356432209,1742440146987,-500.0,0.00027614,2]
[356432210,1742440147011,-500.0,0.00027615,2]
[356432211,1742440147037,-500.0,0.00027615,2]
[356432212,1742440147064,-500.0,0.00027615,2]
[356432213,1742440147088,-500.0,0.00027615,2]
[356432214,1742440147113,-500.0,0.00027615,2]
[356432215,1742440147137,-500.0,0.00027615,2]
[356432216,1742440147162,-230.42703124,0.00027615,2]
[356432218,1742440231951,-500.96218559,0.00023,30]
[356432219,1742440231967,-195.59,0.00026712,120]
[356432220,1742440231980,-500.0,0.00027505,2]
[356432221,1742440231992,-500.0,0.00027505,2]
[356432222,1742440232004,-500.0,0.00027505,2]
[356432223,1742440232016,-550.67,0.00027505,2]
[356432224,1742440232026,-288.0117208,0.00027505,2]
[356432225,1742440232046,-211.9882792,0.00027505,2]
[356432226,1742440232056,-500.0,0.00027505,2]
[356432227,1742440232066,-500.0,0.00027505,2]
[356432228,1742440232076,-500.0,0.00027505,2]
[356432229,1742440232087,-161.64366433,0.00027515,2]
[356432230,1742440232100,-14.96961886,0.00027549,2]
[356432231,1742440232114,-485.03038114,0.00027549,2]
[356432232,1742440232124,-500.0,0.00027549,2]
[356432233,1742440232134,-500.0,0.0002755,2]
[356432234,1742440232143,-232.94195451,0.0002755,2]
[356432235,1742440232164,-267.05804549,0.0002755,2]
[356432236,1742440232176,-45.44195451,0.0002755,2]
[356432237,1742440232194,-454.55804549,0.0002755,2]
[356432238,1742440232207,-500.0,0.0002755,2]
[356432239,1742440232223,-126.60042666,0.0002755,2]
[356432240,1742440232236,-373.39957334,0.0002755,2]
[356432241,1742440232248,-237.0485685,0.0002755,2]
[356432242,1742440232268,-262.9514315,0.0002755,2]
[356432243,1742440232281,-500.0,0.0002755,2]
[356432244,1742440232292,-500.0,0.0002755,2]
[356432245,1742440232304,-500.0,0.0002755,2]
[356432246,1742440232316,-500.0,0.0002755,2]
[356432247,1742440232326,-500.0,0.0002755,2]
[356432248,1742440232338,-500.0,0.0002755,2]
[356432249,1742440232353,-500.0,0.0002755,2]
[356432250,1742440232364,-500.0,0.0002756,2]
[356432251,1742440232376,-500.0,0.0002756,2]
[356432252,1742440232388,-500.0,0.0002756,2]
[356432253,1742440232399,-500.0,0.0002756,2]
[356432254,1742440232411,-500.0,0.0002756,2]
[356432255,1742440232422,-500.0,0.0002756,2]
[356432256,1742440232432,-500.0,0.0002756,2]
[356432257,1742440232448,-500.0,0.0002756,2]
[356432258,1742440232460,-500.0,0.0002756,2]
[356432260,1742440232471,-550.67,0.0002756,2]
[356432262,1742440232483,-500.0,0.0002756,2]
[356432264,1742440232494,-500.0,0.0002756,2]
[356432266,1742440232506,-500.0,0.0002756,2]
[356432268,1742440232519,-500.0,0.0002756,2]
[356432271,1742440232531,-500.0,0.0002756,2]
[356432273,1742440232542,-500.0,0.0002756,2]
[356432275,1742440232553,-500.0,0.0002756,2]
[356432277,1742440232565,-500.0,0.0002756,2]
[356432279,1742440232576,-500.0,0.0002756,2]
[356432282,1742440232587,-500.0,0.0002756,2]
[356432286,1742440232598,-500.0,0.0002756,2]
[356432288,1742440232610,-500.0,0.0002756,2]
[356432291,1742440232622,-500.0,0.0002756,2]
[356432293,1742440232633,-500.0,0.0002756,2]
[356432295,1742440232644,-500.0,0.0002756,2]
[356432297,1742440232654,-500.0,0.0002756,2]
[356432299,1742440232665,-500.0,0.0002756,2]
[356432301,1742440232676,-6.01754615,0.0002756,2]
[356432305,1742440232695,-493.98245385,0.0002756,2]
[356432307,1742440232705,-500.0,0.0002756,2]
[356432309,1742440232716,-500.0,0.00027604,2]
[356432311,1742440232727,-500.0,0.00027604,2]
[356432313,1742440232739,-500.0,0.00027604,2]
[356432316,1742440232750,-500.0,0.00027604,2]
[356432318,1742440232762,-500.0,0.00027604,2]
[356432320,1742440232773,-331.67960987,0.00027604,2]
[356432321,1742440232787,-500.0,0.00027604,2]
[356432322,1742440232800,-500.0,0.00027604,2]
[356432323,1742440232810,-500.0,0.00027604,2]
[356432324,1742440232821,-500.0,0.00027604,2]
[356432325,1742440232832,-500.0,0.00027605,2]
[356432326,1742440232842,-500.0,0.00027605,2]
[356432327,1742440232852,-199.98243952,0.00027605,2]
[356432328,1742440232868,-300.01756048,0.00027605,2]
[356432329,1742440232879,-500.0,0.00027605,2]
[356432330,1742440232889,-500.0,0.00027605,2]
[356432331,1742440232900,-38.94921847,0.00027605,2]
[356432332,1742440232913,-365.19994533,0.00027605,2]
[356432333,1742440232926,-95.8508362,0.00027605,2]
[356432334,1742440232937,-500.0,0.00027605,2]
[356432335,1742440232948,-204.1491638,0.00027615,2]
[356432336,1742440239222,-295.8508362,0.00027615,2]
[356432337,1742440239232,-291.52601735,0.00027615,2]
[356432338,1742440239241,-500.0,0.00027615,2]
[356432339,1742440239251,-500.0,0.00027615,2]
[356432340,1742440239261,-500.0,0.00027615,2]
[356432341,1742440239271,-500.0,0.00027615,2]
[356432342,1742440239280,-500.0,0.00027615,2]
[356432343,1742440239290,-500.0,0.00027615,2]
[356432344,1742440239300,-560.13745328,0.00027615,2]
[356432345,1742440239310,-500.0,0.00027615,2]
[356432346,1742440239319,-500.0,0.00027615,2]
[356432347,1742440239328,-732.75,0.00027615,2]
[356432348,1742440239338,-500.0,0.00027615,2]
[356432349,1742440239347,-500.0,0.00027615,2]
[356432350,1742440239357,-24.15114794,0.00027615,2]
[356432351,1742440239381,-475.84885206,0.00027615,2]
[356432352,1742440239391,-500.0,0.00027615,2]
[356432353,1742440239400,-500.0,0.00027615,2]
[356432354,1742440239410,-500.0,0.00027615,2]
[356432355,1742440239420,-500.0,0.00027615,2]
[356432356,1742440239429,-615.37873738,0.00027615,2]
[356432357,1742440239438,-194.70265729,0.00027615,2]
[356432358,1742440239454,-305.29734271,0.00027615,2]
[356432359,1742440239465,-274.79676065,0.00027615,2]
[356432360,1742440239481,-225.20323935,0.00027615,2]
[356432361,1742440239491,-500.0,0.00027615,2]
[356432362,1742440239500,-202.41190065,0.00027615,2]
[356432366,1742440240018,-297.58809935,0.00027615,2]
[356432367,1742440240026,-200.42673865,0.00027615,2]
[356432368,1742440240037,-299.57326135,0.00027615,2]
[356432369,1742440240046,-500.0,0.00027615,2]
[356432370,1742440240055,-145.60054864,0.00027615,2]
[356432371,1742440240067,-354.39945136,0.00027615,2]
[356432372,1742440240076,-3.93540028,0.00027615,2]
[356432373,1742440240087,-449.500001,0.00027615,2]
[356432374,1742440240132,-46.56459872,0.00027615,2]
[356432375,1742440240141,-500.0,0.00027615,2]
[356432376,1742440240150,-190.00930273,0.00027615,2]
[356432377,1742440240162,-309.99069727,0.00027615,2]
[356432378,1742440240171,-520.29,0.00027615,2]
[356432379,1742440240180,-196.64866105,0.00027615,2]
[356432380,1742440240194,-303.35133895,0.00027615,2]
[356432381,1742440240203,-65.12755105,0.00027615,2]
[356432382,1742440240215,-434.87244895,0.00027615,2]
[356432383,1742440240225,-246.01872605,0.00027615,2]
[356432384,1742440240237,-253.98127395,0.00027615,2]
[356432385,1742440240246,-274.71268436,0.00027615,2]
[356432386,1742440240257,-225.28731564,0.00027615,2]
[356432387,1742440240267,-500.0,0.00027615,2]
[356432388,1742440240276,-134.25299879,0.00027615,2]
[356432389,1742440240287,-365.74700121,0.00027615,2]
[356432390,1742440240297,-500.0,0.00027615,2]
[356432391,1742440240307,-500.0,0.00027615,2]
[356432392,1742440240316,-500.0,0.00027615,2]
[356432393,1742440240326,-500.0,0.00027615,2]
[356432394,1742440240335,-500.0,0.00027615,2]
[356432395,1742440240345,-500.0,0.00027615,2]
[356432396,1742440240355,-500.0,0.00027615,2]
[356432397,1742440240365,-500.0,0.00027615,2]
[356432398,1742440240375,-500.0,0.00027615,2]
[356432399,1742440240385,-500.0,0.00027615,2]
[356432400,1742440240395,-500.0,0.00027615,2]
[356432401,1742440240404,-500.0,0.00027615,2]
[356432402,1742440240414,-186.71113402,0.00027615,2]
[356432403,1742440240423,-500.0,0.00027615,2]
[356432404,1742440240433,-500.0,0.00027615,2]
[356432405,1742440240442,-500.0,0.00027615,2]
[356432406,1742440240456,-500.0,0.00027615,2]
[356432407,1742440240465,-396.00262345,0.00027615,2]
[356432408,1742440240474,-500.0,0.00027615,2]
[356432409,1742440240483,-500.0,0.00027615,2]
[356432410,1742440240494,-500.0,0.00027615,2]
[356432411,1742440240503,-500.0,0.00027615,2]
[356432412,1742440240512,-500.0,0.00027615,2]
[356432413,1742440240523,-500.0,0.00027615,2]
[356432414,1742440240532,-500.0,0.00027615,2]
[356432415,1742440240541,-500.0,0.00027615,2]
[356432416,1742440240551,-500.0,0.00027615,2]
[356432417,1742440240560,-500.0,0.00027615,2]
[356432418,1742440240570,-500.0,0.00027615,2]
[356432419,1742440240579,-500.0,0.00027615,2]
[356432420,1742440240588,-500.0,0.00027615,2]
[356432421,1742440240598,-448.31827927,0.00027615,2]
[356432422,1742440240607,-500.0,0.00027615,2]
[356432423,1742440240616,-500.0,0.00027615,2]
[356432425,1742440240626,-109.31957191,0.00027615,2]
[356432427,1742440240638,-390.68042809,0.00027615,2]
[356432428,1742440240648,-500.0,0.00027615,2]
[356432429,1742440240658,-34.41957191,0.00027615,2]
[356432430,1742440240674,-488.54042809,0.00027615,2]
[356432431,1742440240684,-519.81303551,0.00027615,2]
[356432432,1742440240693,-520.33,0.00027615,2]
[356432434,1742440240703,-500.0,0.00027615,2]
[356432435,1742440240711,-500.0,0.00027615,2]
[356432436,1742440240722,-500.0,0.00027615,2]
[356432437,1742440240731,-500.0,0.00027615,2]
[356432438,1742440240741,-500.0,0.00027615,2]
[356432439,1742440240750,-597.52490405,0.00027615,2]
[356432440,1742440240760,-500.0,0.00027615,2]
[356432441,1742440240769,-500.0,0.00027615,2]
[356432442,1742440240779,-500.0,0.00027615,2]
[356432443,1742440240788,-500.0,0.00027615,2]
[356432444,1742440240797,-410.02345928,0.00027615,2]
[356432445,1742440240807,-500.0,0.00027615,2]
[356432446,1742440240816,-500.0,0.00027615,2]
[356432447,1742440240825,-500.0,0.00027615,2]
[356432448,1742440240835,-500.0,0.00027615,2]
[356432449,1742440240845,-500.0,0.00027615,2]
[356432450,1742440240854,-500.0,0.00027615,2]
[356432451,1742440240864,-500.0,0.00027615,2]
[356432452,1742440240872,-500.0,0.00027615,2]
[356432453,1742440240882,-500.0,0.00027615,2]
[356432454,1742440240892,-500.0,0.00027615,2]
[356432455,1742440240902,-459.28340292,0.00027615,2]
[356432456,1742440240911,-500.0,0.00027615,2]
[356432457,1742440240921,-500.0,0.00027615,2]
[356432458,1742440240931,-550.67,0.00027615,2]
[356432459,1742440240940,-500.0,0.00027615,2]
[356432460,1742440240950,-500.0,0.00027615,2]
[356432461,1742440240959,-170.10029655,0.00027615,2]
[356432462,1742440240970,-500.0,0.00027615,2]
[356432463,1742440240980,-500.0,0.00027615,2]
[356432464,1742440240990,-500.0,0.00027615,2]
[356432465,1742440241000,-500.0,0.00027615,2]
[356432466,1742440241011,-200.0,0.00027615,2]
[356432467,1742440241020,-500.0,0.00027615,2]
[356432468,1742440241029,-500.0,0.00027615,2]
[356432469,1742440241041,-500.0,0.00027615,2]
[356432470,1742440241051,-500.0,0.00027615,2]
[356432471,1742440241060,-500.0,0.00027615,2]
[356432472,1742440241070,-500.0,0.00027615,2]
[356432473,1742440241080,-500.0,0.00027615,2]
[356432474,1742440241089,-500.0,0.00027615,2]
[356432475,1742440241098,-500.0,0.00027615,2]
[356432476,1742440241108,-500.0,0.00027615,2]
[356432477,1742440241118,-500.0,0.00027615,2]
[356432478,1742440241126,-500.0,0.00027615,2]
[356432479,1742440241136,-500.0,0.00027616,2]
[356432480,1742440241146,-500.0,0.00027616,2]
[356432481,1742440241156,-500.0,0.00027616,2]
[356432482,1742440241167,-500.0,0.00027616,2]
[356432483,1742440241176,-500.0,0.00027616,2]
[356432484,1742440241186,-500.0,0.00027616,2]
[356432485,1742440241196,-500.0,0.00027616,2]
[356432486,1742440241206,-500.0,0.00027616,2]
[356432487,1742440241216,-500.0,0.00027616,2]
[356432488,1742440241226,-500.0,0.00027616,2]
[356432489,1742440241235,-500.0,0.00027616,2]
[356432490,1742440241245,-500.0,0.00027616,2]
[356432491,1742440241255,-500.0,0.00027616,2]
[356432492,1742440241264,-552.85,0.00027616,2]
[356432493,1742440241274,-595.85,0.00027616,2]
[356432494,1742440241283,-500.0,0.00027616,2]
[356432495,1742440241292,-500.0,0.00027616,2]
[356432496,1742440241302,-500.0,0.00027616,2]
[356432497,1742440241312,-500.0,0.00027616,2]
[356432498,1742440241322,-500.0,0.00027616,2]
[356432499,1742440241332,-500.0,0.00027616,2]
[356432500,1742440241341,-500.0,0.00027616,2]
[356432501,1742440241351,-300.0,0.00027616,2]
[356432502,1742440241360,-500.0,0.00027616,2]
[356432503,1742440241370,-500.0,0.00027616,2]
[356432504,1742440241381,-500.0,0.00027616,2]
[356432505,1742440241391,-256.9546877,0.00027616,2]